fUST/lending_fUST_20250626
["ID","MTS","AMOUNT","RATE_DAILY","PERIOD"]
[367615730,1750875052661,-654.0,0.00017896,2]
[367615731,1750875052670,-2161.0,0.00017896,2]
[367615732,1750875052679,-800.0,0.00017899,2]
[367615733,1750875052688,-800.0,0.00017899,2]
[367615734,1750875052698,-800.0,0.00017904,2]
[367615735,1750875052707,-800.0,0.00017924,2]
[367615736,1750875052716,-800.0,0.00017935,2]
[367615737,1750875052725,-800.0,0.00017936,2]
[367615738,1750875052735,-500.0,0.00017942,2]
[367615739,1750875052744,-420.0,0.00017951,2]
[367615740,1750875052754,-180.0,0.00017952,2]
[367615741,1750875052763,-800.0,0.00017953,2]
[367615742,1750875052775,-500.0,0.00017957,2]
[367615743,1750875052785,-800.0,0.00017978,2]
[367615744,1750875052794,-800.0,0.00017986,2]
[367615745,1750875052803,-1552.683546,0.00017988,2]
[367615746,1750875052981,-151.0,0.00018,2]
[367615747,1750875052990,-1000.0,0.00018,2]
[367615748,1750875053001,-151.0,0.00018,2]
[367615749,1750875053010,-4865.38270491,0.00018003,2]
[367615750,1750875053022,-170.5,0.00018029,2]
[367615751,1750875053031,-168.0,0.0001803,2]
[367615752,1750875053041,-1000.0,0.00018061,5]
[367615753,1750875053050,-151.0,0.00018081,2]
[367615754,1750875053061,-919.91,0.00018081,2]
[367615755,1750875053070,-1774.36,0.00018081,2]
[367615756,1750875053080,-460.0,0.00018081,2]
[367615757,1750875053089,-1067.85,0.00018081,2]
[367615758,1750875053099,-460.0,0.00018081,2]
[367615759,1750875053108,-1894.0,0.00018081,2]
[367615760,1750875053117,-531.84,0.00018081,2]
[367615761,1750875053127,-5355.52,0.00018081,2]
[367615762,1750875053137,-1378.42,0.00018081,2]
[367615763,1750875053147,-1835.32,0.00018081,2]
[367615764,1750875053156,-488.80393717,0.00018081,2]
[367615765,1750875053321,-36.39606283,0.00018081,2]
[367615766,1750875053330,-544.11837478,0.00018081,2]
[367615767,1750875053342,-418.70153219,0.00018081,2]
[367615768,1750875053353,-311.69009303,0.00018081,2]
[367615769,1750875053362,-111.20990697,0.00018081,2]
[367615770,1750875053374,-348.79009303,0.00018081,2]
[367615771,1750875053383,-151.0,0.00018082,2]
[367615772,1750875053392,-151.0,0.00018082,2]
[367615773,1750875053402,-151.0,0.00018082,2]
[367615774,1750875053411,-239.24165,0.00018082,2]
[367615775,1750875053420,-151.0,0.00018082,2]
[367615776,1750875053429,-151.0,0.00018082,2]
[367615777,1750875053439,-151.0,0.00018082,2]
[367615778,1750875053448,-151.0,0.00018082,2]
[367615779,1750875053457,-460.0,0.00018082,2]
[367615780,1750875053466,-460.0,0.00018082,2]
[367615781,1750875053475,-151.0,0.00018082,2]
[367615782,1750875053485,-151.0,0.00018082,2]
[367615783,1750875053495,-460.0,0.00018082,2]
[367615784,1750875053505,-460.0,0.00018082,2]
[367615785,1750875053515,-535.66,0.00018082,2]
[367615786,1750875053524,-200.42665,0.00018082,2]
[367615787,1750875053534,-151.0,0.00018082,2]
[367615788,1750875053543,-764.86,0.00018082,2]
[367615789,1750875053552,-603.24,0.00018082,2]
[367615790,1750875053562,-460.0,0.00018082,2]
[367615791,1750875053571,-1145.21,0.00018082,2]
[367615792,1750875053580,-151.0,0.00018082,2]
[367615793,1750875053589,-460.0,0.00018082,2]
[367615794,1750875053598,-187.268282,0.00018082,2]
[367615795,1750875053608,-581.78,0.00018082,2]
[367615796,1750875053617,-460.0,0.00018082,2]
[367615797,1750875053626,-527.36501003,0.00018082,2]
[367615798,1750875053636,-151.0,0.00018082,2]
[367615799,1750875053645,-460.0,0.00018082,2]
[367615800,1750875053654,-460.0,0.00018082,2]
[367615801,1750875053664,-460.0,0.00018082,2]
[367615802,1750875053673,-460.0,0.00018082,2]
[367615803,1750875053682,-460.0,0.00018082,2]
[367615804,1750875053692,-323.50048059,0.00018082,2]
[367615805,1750875053701,-460.0,0.00018082,2]
[367615806,1750875053711,-460.0,0.00018082,2]
[367615807,1750875053720,-460.0,0.00018082,2]
[367615808,1750875053729,-422.30860816,0.00018082,2]
[367615809,1750875053738,-1055.3,0.00018082,2]
[367615810,1750875053748,-460.0,0.00018082,2]
[367615811,1750875053758,-679.73,0.00018082,2]
[367615812,1750875053767,-3048.64,0.00018082,2]
[367615813,1750875053777,-460.0,0.00018082,2]
[367615814,1750875053787,-301.11,0.00018082,2]
[367615815,1750875053796,-601.48,0.00018082,2]
[367615816,1750875053805,-460.0,0.00018082,2]
[367615817,1750875053814,-460.0,0.00018082,2]
[367615818,1750875053823,-559.06,0.00018082,2]
[367615819,1750875053833,-883.76,0.00018082,2]
[367615820,1750875053842,-2956.48,0.00018082,2]
[367615821,1750875053852,-606.24,0.00018082,2]
[367615822,1750875053861,-521.58,0.00018082,2]
[367615823,1750875053870,-723.91,0.00018082,2]
[367615824,1750875053880,-671.7,0.00018082,2]
[367615825,1750875053889,-4109.17,0.00018082,2]
[367615826,1750875053899,-481.25,0.00018082,2]
[367615827,1750875053908,-460.0,0.00018082,2]
[367615828,1750875053918,-578.58,0.00018082,2]
[367615829,1750875053927,-2506.69,0.00018082,2]
[367615830,1750875053936,-1334.99,0.00018082,2]
[367615831,1750875053946,-669.22,0.00018082,2]
[367615832,1750875053955,-522.95,0.00018082,2]
[367615833,1750875053964,-1975.06558663,0.00018082,2]
[367615834,1750875053977,-1140.87441337,0.00018082,2]
[367615835,1750875053986,-313.75,0.00018082,2]
[367615836,1750875053995,-460.0,0.00018082,2]
[367615837,1750875054005,-460.0,0.00018082,2]
[367615838,1750875054014,-460.0,0.00018082,2]
[367615839,1750875054024,-509.29,0.00018082,2]
[367615840,1750875054033,-460.0,0.00018082,2]
[367615841,1750875054042,-460.0,0.00018082,2]
[367615842,1750875054051,-675.13,0.00018082,2]
[367615843,1750875054063,-460.0,0.00018082,2]
[367615844,1750875054072,-460.0,0.00018082,2]
[367615845,1750875054082,-4317.43,0.00018082,2]
[367615846,1750875054091,-1381.31,0.00018082,2]
[367615847,1750875054100,-1467.85,0.00018082,2]
[367615848,1750875054109,-556.94,0.00018082,2]
[367615849,1750875054118,-460.0,0.00018082,2]
[367615850,1750875054127,-1472.1,0.00018082,2]
[367615851,1750875054136,-556.15,0.00018082,2]
[367615852,1750875054146,-2321.22,0.00018082,2]
[367615853,1750875054165,-541.67,0.00018082,2]
[367615854,1750875054174,-779.22,0.00018082,2]
[367615855,1750875054183,-744.35,0.00018082,2]
[367615856,1750875054193,-3336.47,0.00018082,2]
[367615857,1750875054203,-773.1,0.00018082,2]
[367615858,1750875054213,-571.5,0.00018082,2]
[367615859,1750875054222,-588.76,0.00018082,2]
[367615860,1750875054232,-168.0,0.00018092,2]
[367615861,1750875054242,-151.0,0.00018098,2]
[367615862,1750875054251,-500.0,0.00018111,2]
[367615863,1750875054261,-32.86926894,0.00018118,2]
[367615864,1750875054274,-321.73173106,0.00018118,2]
[367615865,1750875054284,-994.44811244,0.00018175,2]
[367615866,1750875054294,-168.0,0.00018184,2]
[367615867,1750875054303,-406.0,0.00018187,2]
[367615868,1750875054313,-151.0,0.000182,2]
[367615869,1750875054323,-151.0,0.000182,2]
[367615870,1750875054332,-406.0,0.00018208,2]
[367615871,1750875054341,-406.0,0.00018229,2]
[367615872,1750875054351,-406.0,0.00018262,2]
[367615873,1750875054361,-354.8312648,0.00018265,2]
[367615874,1750875054370,-571.0556217,0.00018265,2]
[367615875,1750875054379,-354.7653312,0.00018265,2]
[367615876,1750875054389,-159.1939926,0.00018265,2]
[367615877,1750875054398,-159.1939926,0.00018265,2]
[367615878,1750875054408,-177.4156324,0.00018265,2]
[367615879,1750875054417,-177.4156324,0.00018265,2]
[367615880,1750875054427,-159.1939926,0.00018265,2]
[367615881,1750875054436,-159.1939926,0.00018265,2]
[367615882,1750875054445,-177.4156324,0.00018265,2]
[367615883,1750875054455,-4865.38270491,0.00018279,2]
[367615884,1750875054465,-199.94155486,0.0001828,2]
[367615885,1750875054474,-692.74139599,0.0001828,2]
[367615886,1750875054484,-568.0,0.00018281,2]
[367615887,1750875054494,-170.5,0.00018283,2]
[367615888,1750875054503,-500.0,0.00018296,2]
[367615889,1750875054513,-406.0,0.00018322,2]
[367615890,1750875054523,-326.0,0.00018336,2]
[367615891,1750875054533,-336.0,0.00018339,2]
[367615892,1750875054543,-206.464079,0.00018355,2]
[367615893,1750875054552,-206.464079,0.00018355,2]
[367615894,1750875054562,-919.91,0.00018355,2]
[367615895,1750875054571,-1774.36,0.00018355,2]
[367615896,1750875054581,-460.0,0.00018355,2]
[367615897,1750875054590,-1067.85,0.00018355,2]
[367615898,1750875054600,-1894.0,0.00018355,2]
[367615899,1750875054609,-460.0,0.00018355,2]
[367615900,1750875054619,-531.84,0.00018355,2]
[367615901,1750875054628,-5355.52,0.00018355,2]
[367615902,1750875054638,-1378.42,0.00018355,2]
[367615903,1750875054647,-151.0,0.00018355,2]
[367615904,1750875054656,-1835.32,0.00018355,2]
[367615905,1750875054666,-178.592124,0.00018355,2]
[367615906,1750875054675,-1274.51,0.00018355,2]
[367615907,1750875054684,-460.0,0.00018355,2]
[367615908,1750875054694,-151.0,0.00018356,2]
[367615909,1750875054703,-173.498796,0.00018356,2]
[367615910,1750875054712,-151.0,0.00018356,2]
[367615911,1750875054722,-154.800415,0.00018356,2]
[367615912,1750875054732,-151.0,0.00018356,2]
[367615913,1750875054741,-151.0,0.00018356,2]
[367615914,1750875054751,-198.096658,0.00018356,2]
[367615915,1750875054761,-151.0,0.00018356,2]
[367615916,1750875054770,-151.0,0.00018356,2]
[367615917,1750875054780,-460.0,0.00018356,2]
[367615918,1750875054789,-460.0,0.00018356,2]
[367615919,1750875054799,-151.0,0.00018356,2]
[367615920,1750875054808,-460.0,0.00018356,2]
[367615921,1750875054817,-460.0,0.00018356,2]
[367615922,1750875054827,-151.0,0.00018356,2]
[367615923,1750875054836,-151.0,0.00018356,2]
[367615924,1750875054845,-151.0,0.00018356,2]
[367615925,1750875054855,-151.0,0.00018356,2]
[367615926,1750875054864,-764.86,0.00018356,2]
[367615927,1750875054873,-603.24,0.00018356,2]
[367615928,1750875054883,-460.0,0.00018356,2]
[367615929,1750875054893,-1145.21,0.00018356,2]
[367615930,1750875054903,-460.0,0.00018356,2]
[367615931,1750875054912,-581.78,0.00018356,2]
[367615932,1750875054922,-460.0,0.00018356,2]
[367615933,1750875054931,-460.0,0.00018356,2]
[367615934,1750875054942,-158.82,0.00018356,2]
[367615935,1750875054951,-460.0,0.00018356,2]
[367615936,1750875054961,-460.0,0.00018356,2]
[367615937,1750875054971,-559.75,0.00018356,2]
[367615938,1750875054980,-460.0,0.00018356,2]
[367615939,1750875054990,-460.0,0.00018356,2]
[367615940,1750875054999,-460.0,0.00018356,2]
[367615941,1750875055008,-1055.3,0.00018356,2]
[367615942,1750875055018,-460.0,0.00018356,2]
[367615943,1750875055027,-679.73,0.00018356,2]
[367615944,1750875055036,-3048.64,0.00018356,2]
[367615945,1750875055046,-460.0,0.00018356,2]
[367615946,1750875055055,-151.0,0.00018356,2]
[367615947,1750875055068,-601.48,0.00018356,2]
[367615948,1750875055077,-460.0,0.00018356,2]
[367615949,1750875055087,-460.0,0.00018356,2]
[367615950,1750875055096,-559.06,0.00018356,2]
[367615951,1750875055106,-883.76,0.00018356,2]
[367615952,1750875055115,-2956.48,0.00018356,2]
[367615953,1750875055125,-606.24,0.00018356,2]
[367615954,1750875055134,-521.58,0.00018356,2]
[367615955,1750875055148,-723.91,0.00018356,2]
[367615956,1750875055157,-671.7,0.00018356,2]
[367615957,1750875055167,-4109.17,0.00018356,2]
[367615958,1750875055176,-281.71,0.00018356,2]
[367615959,1750875055185,-578.58,0.00018356,2]
[367615960,1750875055195,-2506.69,0.00018356,2]
[367615961,1750875055204,-1334.99,0.00018356,2]
[367615962,1750875055214,-669.22,0.00018356,2]
[367615963,1750875055223,-522.95,0.00018356,2]
[367615964,1750875055233,-3115.94,0.00018356,2]
[367615965,1750875055243,-460.0,0.00018356,2]
[367615966,1750875055252,-460.0,0.00018356,2]
[367615967,1750875055261,-460.0,0.00018356,2]
[367615968,1750875055271,-509.29,0.00018356,2]
[367615969,1750875055280,-460.0,0.00018356,2]
[367615970,1750875055289,-460.0,0.00018356,2]
[367615971,1750875055298,-675.13,0.00018356,2]
[367615972,1750875055307,-460.0,0.00018356,2]
[367615973,1750875055317,-460.0,0.00018356,2]
[367615974,1750875055326,-4317.43,0.00018356,2]
[367615975,1750875055335,-1381.31,0.00018356,2]
[367615976,1750875055345,-1467.85,0.00018356,2]
[367615977,1750875055354,-556.94,0.00018356,2]
[367615978,1750875055363,-460.0,0.00018356,2]
[367615979,1750875055372,-1472.1,0.00018356,2]
[367615980,1750875055381,-556.15,0.00018356,2]
[367615981,1750875055391,-2321.22,0.00018356,2]
[367615982,1750875055400,-541.67,0.00018356,2]
[367615983,1750875055409,-779.22,0.00018356,2]
[367615984,1750875055419,-744.35,0.00018356,2]
[367615985,1750875055428,-3336.47,0.00018356,2]
[367615986,1750875055437,-773.1,0.00018356,2]
[367615987,1750875055447,-571.5,0.00018356,2]
[367615988,1750875055456,-588.76,0.00018356,2]
[367615989,1750875055465,-215.0738,0.00018369,2]
[367615990,1750875055475,-406.0,0.00018381,2]
[367615991,1750875055484,-1500.0,0.00018398,2]
[367615992,1750875055493,-406.0,0.00018438,2]
[367615993,1750875055503,-151.0,0.000185,2]
[367615994,1750875055513,-151.0,0.000185,2]
[367615995,1750875055522,-151.0,0.000185,2]
[367615996,1750875055531,-1000.0,0.000185,2]
[367615997,1750875055541,-568.0,0.00018503,2]
[367615998,1750875055550,-170.5,0.00018538,2]
[367615999,1750875055560,-4865.38270491,0.00018555,2]
[367616000,1750875055570,-640.0,0.000186,2]
[367616001,1750875055579,-919.91,0.00018629,2]
[367616002,1750875055588,-1774.36,0.00018629,2]
[367616003,1750875055598,-460.0,0.00018629,2]
[367616004,1750875055607,-1067.85,0.00018629,2]
[367616005,1750875055616,-1894.0,0.00018629,2]
[367616006,1750875055628,-460.0,0.00018629,2]
[367616007,1750875055637,-531.84,0.00018629,2]
[367616008,1750875055647,-1020.13909732,0.00018629,2]
[367616009,1750875055660,-4335.38090268,0.00018629,2]
[367616010,1750875055669,-1378.42,0.00018629,2]
[367616011,1750875055679,-1835.32,0.00018629,2]
[367616012,1750875055688,-1274.51,0.00018629,2]
[367616013,1750875055697,-460.0,0.00018629,2]
[367616014,1750875055706,-151.0,0.0001863,2]
[367616015,1750875055715,-151.0,0.0001863,2]
[367616016,1750875055725,-151.0,0.0001863,2]
[367616017,1750875055734,-151.0,0.0001863,2]
[367616018,1750875055743,-151.0,0.0001863,2]
[367616019,1750875055752,-151.0,0.0001863,2]
[367616020,1750875055762,-151.0,0.0001863,2]
[367616021,1750875055772,-151.0,0.0001863,2]
[367616022,1750875055781,-460.0,0.0001863,2]
[367616023,1750875055951,-460.0,0.0001863,2]
[367616024,1750875055962,-151.0,0.0001863,2]
[367616025,1750875055972,-151.0,0.0001863,2]
[367616026,1750875055982,-460.0,0.0001863,2]
[367616027,1750875055991,-460.0,0.0001863,2]
[367616028,1750875056000,-764.86,0.0001863,2]
[367616029,1750875056010,-603.24,0.0001863,2]
[367616030,1750875056019,-460.0,0.0001863,2]
[367616031,1750875056029,-1145.21,0.0001863,2]
[367616032,1750875056038,-151.0,0.0001863,2]
[367616033,1750875056048,-460.0,0.0001863,2]
[367616034,1750875056059,-581.78,0.0001863,2]
[367616035,1750875056070,-206.464079,0.0001863,2]
[367616036,1750875056079,-206.464079,0.0001863,2]
[367616037,1750875056089,-460.0,0.0001863,2]
[367616038,1750875056098,-151.0,0.0001863,2]
[367616039,1750875056108,-565.7309876,0.0001863,2]
[367616040,1750875056118,-460.0,0.0001863,2]
[367616041,1750875056127,-460.0,0.0001863,2]
[367616042,1750875056137,-206.97773014,0.0001863,2]
[367616043,1750875056147,-460.0,0.0001863,2]
[367616044,1750875056156,-460.0,0.0001863,2]
[367616045,1750875056166,-1055.3,0.0001863,2]
[367616046,1750875056176,-460.0,0.0001863,2]
[367616047,1750875056185,-679.73,0.0001863,2]
[367616048,1750875056195,-3048.64,0.0001863,2]
[367616049,1750875056204,-460.0,0.0001863,2]
[367616050,1750875056213,-601.48,0.0001863,2]
[367616051,1750875056222,-460.0,0.0001863,2]
[367616052,1750875056232,-460.0,0.0001863,2]
[367616053,1750875056241,-559.06,0.0001863,2]
[367616054,1750875056250,-883.76,0.0001863,2]
[367616055,1750875056259,-2956.48,0.0001863,2]
[367616056,1750875056268,-606.24,0.0001863,2]
[367616057,1750875056279,-521.58,0.0001863,2]
[367616058,1750875056289,-723.91,0.0001863,2]
[367616059,1750875056298,-671.7,0.0001863,2]
[367616060,1750875056307,-4109.17,0.0001863,2]
[367616061,1750875056317,-578.58,0.0001863,2]
[367616062,1750875056326,-2506.69,0.0001863,2]
[367616063,1750875056335,-1334.99,0.0001863,2]
[367616064,1750875056345,-669.22,0.0001863,2]
[367616065,1750875056353,-522.95,0.0001863,2]
[367616066,1750875056363,-3115.94,0.0001863,2]
[367616067,1750875056372,-460.0,0.0001863,2]
[367616068,1750875056381,-460.0,0.0001863,2]
[367616069,1750875056391,-460.0,0.0001863,2]
[367616070,1750875056400,-509.29,0.0001863,2]
[367616071,1750875056409,-460.0,0.0001863,2]
[367616072,1750875056419,-460.0,0.0001863,2]
[367616073,1750875056428,-675.13,0.0001863,2]
[367616074,1750875056438,-460.0,0.0001863,2]
[367616075,1750875056447,-151.0,0.0001863,2]
[367616076,1750875056458,-460.0,0.0001863,2]
[367616077,1750875056468,-4317.43,0.0001863,2]
[367616078,1750875056477,-1381.31,0.0001863,2]
[367616079,1750875056487,-556.94,0.0001863,2]
[367616080,1750875056495,-1467.85,0.0001863,2]
[367616081,1750875056505,-460.0,0.0001863,2]
[367616082,1750875056514,-1472.1,0.0001863,2]
[367616083,1750875056525,-556.15,0.0001863,2]
[367616084,1750875056536,-2321.22,0.0001863,2]
[367616085,1750875056545,-541.67,0.0001863,2]
[367616086,1750875056555,-779.22,0.0001863,2]
[367616087,1750875056565,-744.35,0.0001863,2]
[367616088,1750875056575,-3336.47,0.0001863,2]
[367616089,1750875056590,-773.1,0.0001863,2]
[367616090,1750875056599,-571.5,0.0001863,2]
[367616091,1750875056609,-588.76,0.0001863,2]
[367616092,1750875056619,-158.96531773,0.00018644,2]
[367616093,1750875056628,-151.0,0.000187,2]
[367616094,1750875056637,-151.0,0.000187,2]
[367616095,1750875056646,-170.5,0.00018792,2]
[367616096,1750875056655,-5000.0,0.00018805,2]
[367616097,1750875056665,-326.0,0.00018814,2]
[367616098,1750875056674,-151.0,0.00018831,2]
[367616099,1750875056683,-151.0,0.00018831,2]
[367616100,1750875056692,-151.0,0.00018831,2]
[367616101,1750875056702,-151.0,0.00018831,2]
[367616102,1750875056712,-2905.50873686,0.00018831,2]
[367616103,1750875056730,-553.34,0.0001726,2]
[367616104,1750875056739,-1546.51863507,0.00018831,2]
[367616105,1750875056865,-460.0,0.00016438,2]
[367616106,1750875056875,-460.0,0.00016438,2]
[367616107,1750875056885,-269.33,0.00016712,2]
[367616108,1750875056894,-460.0,0.00017808,2]
[367616109,1750875056903,-273.53944573,0.00018082,2]
[367616110,1750875056913,-413.35533298,0.00018831,2]
[367616111,1750875056923,-2663.77522129,0.00018888,2]
[367616112,1750875056961,-72424.71477871,0.00018888,2]
[367616113,1750875056970,-151.0,0.00018888,2]
[367616114,1750875056980,-151.0,0.00018888,2]
[367616115,1750875056989,-151.0,0.00018888,2]
[367616116,1750875056999,-151.0,0.00018888,2]
[367616117,1750875057008,-151.0,0.00018888,2]
[367616118,1750875057018,-151.0,0.00018888,2]
[367616119,1750875057029,-151.0,0.00018888,2]
[367616120,1750875057038,-177.838232,0.00018888,2]
[367616121,1750875057047,-177.838232,0.00018888,2]
[367616122,1750875057058,-287.422844,0.00018888,2]
[367616123,1750875057070,-183.541983,0.00018888,2]
[367616124,1750875057079,-151.0,0.00018888,2]
[367616125,1750875057088,-151.0,0.00018888,2]
[367616126,1750875057099,-2387.75481531,0.000189,2]
[367616127,1750875057108,-919.91,0.00018903,2]
[367616128,1750875057117,-1486.13713138,0.00018903,2]
[367616129,1750875057281,-460.0,0.00016438,2]
[367616130,1750875057290,-460.0,0.00016438,2]
[367616131,1750875057300,-460.0,0.00016712,2]
[367616132,1750875057310,-288.22286862,0.00018903,2]
[367616133,1750875057319,-460.0,0.00018903,2]
[367616134,1750875057329,-1067.85,0.00018903,2]
[367616135,1750875057339,-1894.0,0.00018903,2]
[367616136,1750875057348,-460.0,0.00018903,2]
[367616137,1750875057357,-531.84,0.00018903,2]
[367616138,1750875057367,-5355.52,0.00018903,2]
[367616139,1750875057376,-1378.42,0.00018903,2]
[367616140,1750875057384,-1835.32,0.00018903,2]
[367616141,1750875057394,-1274.51,0.00018903,2]
[367616142,1750875057403,-460.0,0.00018903,2]
[367616143,1750875057413,-151.0,0.00018904,2]
[367616144,1750875057422,-151.0,0.00018904,2]
[367616145,1750875057431,-151.0,0.00018904,2]
[367616146,1750875057441,-151.0,0.00018904,2]
[367616147,1750875057450,-151.0,0.00018904,2]
[367616148,1750875057459,-460.0,0.00018904,2]
[367616149,1750875057468,-460.0,0.00018904,2]
[367616150,1750875057478,-151.0,0.00018904,2]
[367616151,1750875057487,-151.0,0.00018904,2]
[367616152,1750875057496,-151.0,0.00018904,2]
[367616153,1750875057505,-482.7090212,0.00018904,2]
[367616154,1750875057514,-460.0,0.00018904,2]
[367616155,1750875057523,-151.0,0.00018904,2]
[367616156,1750875057533,-151.0,0.00018904,2]
[367616157,1750875057543,-151.0,0.00018904,2]
[367616158,1750875057552,-764.86,0.00018904,2]
[367616159,1750875057562,-603.24,0.00018904,2]
[367616160,1750875057571,-460.0,0.00018904,2]
[367616161,1750875057581,-1145.21,0.00018904,2]
[367616162,1750875057590,-460.0,0.00018904,2]
[367616163,1750875057599,-581.78,0.00018904,2]
[367616164,1750875057608,-206.464079,0.00018904,2]
[367616165,1750875057618,-206.464079,0.00018904,2]
[367616166,1750875057627,-460.0,0.00018904,2]
[367616167,1750875057637,-460.0,0.00018904,2]
[367616168,1750875057646,-460.0,0.00018904,2]
[367616169,1750875057656,-460.0,0.00018904,2]
[367616170,1750875057665,-460.0,0.00018904,2]
[367616171,1750875057673,-1055.3,0.00018904,2]
[367616172,1750875057681,-460.0,0.00018904,2]
[367616173,1750875057689,-679.73,0.00018904,2]
[367616174,1750875057697,-3048.64,0.00018904,2]
[367616175,1750875057707,-163.55568847,0.00018904,2]
[367616176,1750875057716,-601.48,0.00018904,2]
[367616177,1750875057725,-460.0,0.00018904,2]
[367616178,1750875057734,-460.0,0.00018904,2]
[367616179,1750875057743,-559.06,0.00018904,2]
[367616180,1750875057752,-883.76,0.00018904,2]
[367616181,1750875057761,-2956.48,0.00018904,2]
[367616182,1750875057770,-606.24,0.00018904,2]
[367616183,1750875057781,-723.91,0.00018904,2]
[367616184,1750875057791,-521.58,0.00018904,2]
[367616185,1750875057800,-671.7,0.00018904,2]
[367616186,1750875057809,-4109.17,0.00018904,2]
[367616187,1750875057819,-578.58,0.00018904,2]
[367616188,1750875057828,-2506.69,0.00018904,2]
[367616189,1750875057837,-1334.99,0.00018904,2]
[367616190,1750875057846,-669.22,0.00018904,2]
[367616191,1750875057855,-522.95,0.00018904,2]
[367616192,1750875057865,-3115.94,0.00018904,2]
[367616193,1750875057874,-460.0,0.00018904,2]
[367616194,1750875057883,-460.0,0.00018904,2]
[367616195,1750875057893,-460.0,0.00018904,2]
[367616196,1750875057903,-509.29,0.00018904,2]
[367616197,1750875057912,-460.0,0.00018904,2]
[367616198,1750875057921,-460.0,0.00018904,2]
[367616199,1750875057930,-675.13,0.00018904,2]
[367616200,1750875057939,-460.0,0.00018904,2]
[367616201,1750875057948,-151.0,0.00018904,2]
[367616202,1750875057958,-460.0,0.00018904,2]
[367616203,1750875057967,-4317.43,0.00018904,2]
[367616204,1750875057976,-1381.31,0.00018904,2]
[367616205,1750875057986,-556.94,0.00018904,2]
[367616206,1750875057995,-1467.85,0.00018904,2]
[367616207,1750875058005,-460.0,0.00018904,2]
[367616208,1750875058014,-1472.1,0.00018904,2]
[367616209,1750875058023,-556.15,0.00018904,2]
[367616210,1750875058033,-2321.22,0.00018904,2]
[367616211,1750875058043,-541.67,0.00018904,2]
[367616212,1750875058053,-779.22,0.00018904,2]
[367616213,1750875058065,-744.35,0.00018904,2]
[367616214,1750875058074,-3336.47,0.00018904,2]
[367616215,1750875058083,-773.1,0.00018904,2]
[367616216,1750875058092,-571.5,0.00018904,2]
[367616217,1750875058101,-588.76,0.00018904,2]
[367616218,1750875058110,-568.0,0.00018934,2]
[367616219,1750875058120,-2000.0,0.00018946,2]
[367616220,1750875058129,-3050.36147407,0.00019,2]
[367616221,1750875058138,-160.0,0.00019002,3]
[367616222,1750875058148,-168.0,0.00019005,2]
[367616223,1750875058157,-170.5,0.00019047,3]
[367616224,1750875058167,-500.0,0.00019065,2]
[367616225,1750875058176,-159.1939926,0.00019087,2]
[367616226,1750875058185,-318.3879852,0.00019087,2]
[367616227,1750875058194,-159.1939926,0.00019087,2]
[367616228,1750875058204,-994.44811244,0.00019096,2]
[367616229,1750875058213,-168.74563269,0.000191,2]